bitfinex-derivatives/quotes_SOLF0:USTF0_20260121
["timestamp","ask_amount","ask_price","bid_price","bid_amount"]
[1769021918053,6.26503252,127.62,127.55,14.46898205]
[1769021918353,6.1810447,127.61,127.55,14.46898205]
[1769021918551,6.26503252,127.62,127.55,14.46898205]
[1769021918744,6.26503252,127.62,127.56,7.0613]
[1769021919053,6.26503252,127.62,127.56,14.46828205]
[1769021919552,13.32323252,127.62,127.56,14.46828205]
[1769021919954,6.26503252,127.62,127.56,14.46828205]
[1769021920152,2.62482294,127.63,127.57,7.40698205]
[1769021920340,6.14950768,127.65,127.58,7.40698205]
[1769021920549,13.20540768,127.67,127.58,7.40698205]
[1769021920748,13.20540768,127.67,127.6,7.40698205]
[1769021921140,2.62482294,127.68,127.61,14.46568205]
[1769021921340,8.71759479,127.68,127.61,14.46568205]
[1769021922139,6.03661075,127.67,127.59,9.68422294]
[1769021922346,6.03661075,127.67,127.59,17.09120499]
[1769021923156,6.03661075,127.67,127.6,7.40698205]
[1769021923949,7.0562,127.66,127.6,7.40698205]
[1769021925159,12.92817707,127.66,127.6,7.40698205]
[1769021926357,7.0566,127.65,127.58,9.6508434]
[1769021926560,12.81327475,127.65,127.58,9.6508434]
[1769021926858,12.81327475,127.65,127.58,7.02908004]
[1769021927058,15.43503811,127.65,127.58,7.02908004]
[1769021927358,5.70439007,127.64,127.58,7.02908004]
[1769021927658,8.32615343,127.63,127.56,14.08998004]
[1769021928462,8.32615343,127.63,127.57,7.02908004]
[1769021928656,15.28036094,127.65,127.58,7.02908004]
[1769021931753,7.0572,127.64,127.58,7.02908004]
[1769021932363,7.0578,127.63,127.58,7.02908004]
[1769021932561,12.46076597,127.63,127.56,7.02908004]
[1769021932753,15.08252933,127.63,127.56,7.02908004]
[1769021933261,8.02472933,127.63,127.57,14.08988004]
[1769021934750,15.08232933,127.63,127.57,7.02908004]
[1769021936961,15.08232933,127.63,127.57,14.08988004]
[1769021937167,15.08232933,127.63,127.57,7.02908004]
[1769021939565,15.08232933,127.63,127.57,14.08998004]
[1769021940258,8.02472933,127.63,127.57,14.08998004]
[1769021940464,7.65259687,127.65,127.59,6.49614329]
[1769021940762,7.60864287,127.67,127.59,6.49614329]
[1769021941556,2.62176336,127.65,127.59,6.49614329]
[1769021943055,7.52224146,127.7,127.61,6.49614329]
[1769021943472,11.9552781,127.69,127.62,13.55424329]
[1769021943862,4.9004781,127.69,127.62,13.55424329]
[1769021944865,7.0549,127.68,127.62,13.55424329]
[1769021947474,11.78884825,127.67,127.6,9.11790665]
[1769021947663,4.73344825,127.67,127.61,6.49614329]
[1769021948469,4.73344825,127.67,127.61,13.55474329]
[1769021948664,7.27462666,127.66,127.58,6.49614329]
[1769021949871,7.27462666,127.66,127.59,6.49614329]
[1769021950870,7.0565,127.65,127.59,6.49614329]
[1769021951573,14.21417616,127.64,127.58,7.0598]
[1769021951874,14.21417616,127.64,127.58,13.55594329]
[1769021953074,2.62176336,127.64,127.6,6.49614329]
[1769021953273,14.17519677,127.66,127.6,6.49614329]
[1769021953473,7.0565,127.65,127.6,6.49614329]
[1769021954572,2.62176336,127.64,127.58,13.55644329]
[1769021955370,7.00530303,127.64,127.58,13.55644329]
[1769021957076,2.62176336,127.64,127.59,13.03049301]
[1769021957368,7.0565,127.65,127.59,13.03049301]
[1769021957575,7.0565,127.65,127.6,5.97069301]
[1769021958976,13.98871515,127.66,127.6,13.02989301]
[1769021959776,6.93271515,127.66,127.6,13.02989301]
[1769021960672,2.62176336,127.66,127.61,5.97069301]
[1769021960879,2.62176336,127.68,127.62,5.97069301]
[1769021961169,6.79234925,127.7,127.62,5.97069301]
[1769021962374,2.62176336,127.68,127.63,5.97069301]
[1769021962678,6.72460782,127.68,127.6,5.97069301]
[1769021963867,13.77940782,127.68,127.61,7.0586]
[1769021964075,6.69127348,127.66,127.59,5.97069301]
[1769021964878,13.74727348,127.66,127.6,13.02989301]
[1769021966779,13.74727348,127.66,127.6,5.97069301]
[1769021970177,13.74727348,127.66,127.6,13.02959301]
[1769021972980,9.67776336,127.66,127.61,5.97069301]
[1769021974471,13.39703748,127.68,127.61,13.02929301]
[1769021974676,13.39703748,127.68,127.62,5.97069301]
[1769021975281,6.26168505,127.7,127.63,5.97069301]
[1769021975586,6.17046166,127.69,127.63,5.97069301]
[1769021975788,13.31588505,127.7,127.63,13.02819301]
[1769021976081,6.1704508,127.69,127.63,13.02819301]
[1769021976284,13.31588505,127.7,127.63,13.02819301]
[1769021976479,6.17019797,127.69,127.63,13.02819301]
[1769021976680,13.31588505,127.7,127.63,13.02819301]
[1769021976879,6.17019797,127.69,127.63,13.02819301]
[1769021977080,13.31588505,127.7,127.63,13.02819301]
[1769021977279,6.16998744,127.69,127.63,13.02819301]
[1769021977478,7.0545,127.69,127.63,13.02819301]
[1769021978183,7.0545,127.69,127.63,5.97069301]
[1769021980286,7.055,127.68,127.63,5.97069301]
[1769021980678,6.26168505,127.7,127.63,5.97069301]
[1769021981287,10.46523232,127.69,127.63,5.97069301]
[1769021982484,7.0548,127.68,127.63,5.97069301]
[1769021983288,7.0554,127.67,127.63,5.97069301]
[1769021988585,7.0548,127.68,127.63,5.97069301]
[1769021990789,3.03589656,127.68,127.62,7.058]
[1769021990980,7.0554,127.67,127.62,7.058]
[1769021991282,7.0554,127.67,127.62,12.85528075]
[1769021992281,3.03589656,127.68,127.63,5.79728075]
[1769021993888,10.09079656,127.68,127.63,5.79728075]
[1769021994092,10.09079656,127.68,127.62,7.058]
[1769021994288,3.03589656,127.68,127.61,12.85588075]
[1769021994476,9.96436338,127.66,127.61,5.79728075]
[1769021995387,2.90836338,127.66,127.61,5.79728075]
[1769021996092,9.96426338,127.66,127.61,5.79728075]
[1769021996586,2.90836338,127.66,127.61,5.79728075]
[1769021997089,9.96446338,127.66,127.61,5.79728075]
[1769021997295,2.90836338,127.66,127.59,5.79728075]
[1769021997485,2.6210854,127.65,127.59,5.79728075]
[1769021997690,2.81652447,127.64,127.59,5.79728075]
[1769021999103,9.87362447,127.64,127.59,5.79728075]
[1769021999795,2.81652447,127.64,127.59,12.85698075]
[1769022000280,9.77830144,127.66,127.59,5.79728075]
[1769022000685,9.6764854,127.67,127.61,12.26996317]
[1769022000892,2.69308717,127.68,127.62,5.21136317]
[1769022001297,9.74798717,127.68,127.62,12.26946317]
[1769022001482,9.74798717,127.68,127.6,2.6210854]
[1769022001483,2.69308717,127.68,127.59,5.21136317]
[1769022001791,2.6210854,127.63,127.57,5.21136317]
[1769022002187,2.6210854,127.63,127.57,12.27226317]
[1769022002492,2.6210854,127.63,127.58,5.21136317]
[1769022002792,9.6775854,127.65,127.59,5.21136317]
[1769022003300,9.6764854,127.67,127.61,5.21136317]
[1769022003688,9.8939356,127.7,127.61,5.21136317]
[1769022003884,6.17254463,127.69,127.64,5.21136317]
[1769022004093,9.66239183,127.7,127.64,5.21136317]
[1769022004298,6.1719571,127.69,127.64,5.21136317]
[1769022004497,12.25527387,127.72,127.65,5.21136317]
[1769022004700,6.17178894,127.71,127.65,5.21136317]
[1769022004896,7.0531,127.72,127.65,5.21136317]
[1769022005999,7.0531,127.72,127.65,12.26786317]
[1769022006195,5.20217387,127.74,127.64,2.6210854]
[1769022006196,7.052,127.74,127.66,5.21136317]
[1769022006495,2.55388897,127.76,127.67,5.21136317]
[1769022006796,6.16535009,127.75,127.67,5.21136317]
[1769022006995,9.57805998,127.75,127.68,12.26606317]
[1769022008600,9.57805998,127.75,127.66,2.6210854]
[1769022008601,2.6210854,127.73,127.66,5.21136317]
[1769022008785,5.09528622,127.73,127.66,5.21136317]
[1769022009199,5.09528622,127.73,127.66,5.17406755]
[1769022009391,12.14738622,127.73,127.66,12.22996755]
[1769022009695,2.6210854,127.73,127.64,112.3912854]
[1769022009896,2.6210854,127.73,127.64,2.6210854]
[1769022009897,5.10673022,127.73,127.64,2.6210854]
[1769022010493,7.0527,127.72,127.65,7.056]
[1769022010697,9.51273465,127.72,127.65,7.056]
[1769022010902,5.08112005,127.69,127.59,112.4370854]
[1769022011099,12.13652005,127.67,127.6,7.0589]
[1769022011300,12.13652005,127.67,127.6,12.27026317]
[1769022012988,9.51543465,127.67,127.6,12.27026317]
[1769022013194,9.51543465,127.67,127.61,5.21136317]
[1769022013801,7.0546,127.69,127.62,5.21136317]
[1769022013995,2.38502886,127.7,127.62,5.21136317]
[1769022014997,9.43882886,127.7,127.63,12.26886317]
[1769022015897,2.31595697,127.72,127.64,12.56655406]
[1769022016102,6.1586909,127.71,127.65,5.50955406]
[1769022016405,2.31595697,127.74,127.65,5.50955406]
[1769022016603,7.0527,127.72,127.65,12.56595406]
[1769022016907,8.44362437,127.71,127.61,5.50955406]
[1769022017097,2.29232184,127.71,127.61,5.50955406]
[1769022017904,7.054,127.7,127.63,12.56665406]
[1769022018206,2.29232184,127.71,127.64,5.50955406]
[1769022019899,7.054,127.7,127.64,5.50955406]
[1769022020896,2.29232184,127.71,127.64,5.50955406]
[1769022021094,7.0531,127.72,127.64,5.50955406]
[1769022021294,7.28534377,127.76,127.66,5.50955406]
[1769022021500,13.20021041,127.75,127.68,12.56415406]
[1769022021699,6.14921041,127.74,127.68,12.56415406]
[1769022022006,2.20050252,127.76,127.68,5.50955406]
[1769022022207,8.32690803,127.75,127.68,5.50955406]
[1769022022506,6.14866518,127.74,127.68,5.50955406]
[1769022022705,2.15617347,127.74,127.64,5.50955406]
[1769022022907,2.15617347,127.72,127.64,5.50955406]
[1769022023507,2.15617347,127.7,127.64,5.50955406]
[1769022024108,7.0525,127.73,127.66,5.50955406]
[1769022024310,6.14743031,127.72,127.66,5.50955406]
[1769022024500,2.13437112,127.73,127.66,5.50955406]
[1769022024703,2.1128051,127.71,127.62,5.50955406]
[1769022025103,6.14752335,127.7,127.64,12.56605406]
[1769022025405,2.1128051,127.71,127.64,12.56605406]
[1769022025604,9.1660051,127.71,127.65,7.0564]
[1769022026401,9.1660051,127.71,127.64,5.50955406]
[1769022027905,9.1660051,127.71,127.64,12.56655406]
[1769022028613,7.0532,127.71,127.66,5.50955406]
[1769022028805,2.02901882,127.73,127.66,5.50955406]
[1769022029007,8.1758981,127.72,127.65,12.56595406]
[1769022029208,6.14707304,127.71,127.65,12.56595406]
[1769022029412,2.02901882,127.72,127.65,12.56595406]
[1769022029611,6.14736012,127.71,127.65,12.56595406]
[1769022029913,9.06203341,127.71,127.64,7.057]
[1769022030209,9.06203341,127.71,127.64,12.56655406]
[1769022030410,7.0537,127.7,127.64,12.56655406]
[1769022030805,7.0537,127.7,127.64,5.50955406]
[1769022031210,9.04232203,127.7,127.64,5.50955406]
[1769022031408,1.98862203,127.7,127.62,5.50955406]
[1769022031612,1.96881837,127.68,127.58,5.50955406]
[1769022031915,7.0556,127.67,127.58,5.50955406]
[1769022032112,7.0556,127.67,127.61,7.0587]
[1769022032415,7.0556,127.67,127.61,12.56825406]
[1769022032809,9.00578483,127.65,127.59,5.50955406]
[1769022033009,2.62294949,127.64,127.59,5.50955406]
[1769022034008,2.62294949,127.64,127.56,5.50955406]
[1769022034307,2.62294949,127.62,127.56,5.50955406]
[1769022035204,4.53353453,127.6,127.54,5.50955406]
[1769022037012,8.93137121,127.62,127.54,5.50955406]
[1769022037915,8.93137121,127.62,127.55,12.57145406]
[1769022038516,7.0588,127.61,127.55,5.50955406]
[1769022038711,8.89481183,127.61,127.55,5.50955406]
[1769022038908,1.83601183,127.61,127.47,31.15379732]
[1769022039114,1.83601183,127.59,127.5,5.50955406]
[1769022039420,1.83601183,127.62,127.52,5.50955406]
[1769022040212,1.83601183,127.62,127.5,109.8933]
[1769022040213,7.059,127.61,127.54,5.50955406]
[1769022040419,1.83601183,127.62,127.54,5.50955406]
[1769022040714,1.83601183,127.62,127.55,5.50955406]
[1769022041311,8.85889237,127.61,127.53,5.50955406]
[1769022042211,1.78229919,127.6,127.53,5.50955406]
[1769022042811,1.76481007,127.59,127.49,5.50955406]
[1769022043016,1.76481007,127.58,127.49,5.50955406]
[1769022043409,7.0618,127.56,127.49,12.57475406]
[1769022043616,8.80932493,127.56,127.49,5.50955406]
[1769022044008,8.80932493,127.56,127.49,12.57475406]
[1769022046530,1.68116059,127.55,127.46,4.8872405]
[1769022047512,7.0626,127.54,127.47,11.9535405]
[1769022048411,1.68116059,127.55,127.48,4.8872405]
[1769022048614,1.68116059,127.55,127.44,109.9464]
[1769022048615,7.0618,127.56,127.49,4.8872405]
[1769022049015,1.66485157,127.58,127.49,4.8872405]
[1769022049218,7.061,127.57,127.5,11.9518405]
[1769022050121,7.0599,127.59,127.51,4.8872405]
[1769022050637,111.44099289,127.61,127.52,4.8872405]
[1769022050638,8.69199289,127.61,127.52,4.8872405]
[1769022051626,7.0593,127.6,127.53,11.9502405]
[1769022052217,8.66084635,127.6,127.53,11.9502405]
[1769022056326,1.60154635,127.6,127.54,11.9495405]
[1769022056723,1.60154635,127.6,127.54,4.8872405]
[1769022057216,8.66084635,127.6,127.54,4.8872405]
[1769022057624,1.60154635,127.6,127.54,4.8872405]
[1769022057927,7.0588,127.61,127.55,7.0619]
[1769022058122,1.51193667,127.62,127.56,4.8872405]
[1769022058328,1.51193667,127.62,127.56,11.9486405]
[1769022059026,1.51193667,127.62,127.56,4.8872405]
[1769022059211,1.51193667,127.62,127.54,11.72753578]
[1769022059617,7.0587,127.61,127.54,11.72753578]
[1769022060626,7.0593,127.6,127.54,4.66543578]
[1769022061226,7.0593,127.6,127.54,11.72793578]
[1769022061425,7.0593,127.6,127.54,4.66543578]
[1769022062224,7.0602,127.59,127.54,4.66543578]
[1769022062528,1.44258902,127.59,127.5,4.66543578]
[1769022062729,7.0609,127.57,127.5,4.66543578]
[1769022062922,1.44258902,127.59,127.5,4.66543578]
[1769022063524,1.44258902,127.59,127.51,7.0639]
[1769022064021,1.44258902,127.59,127.51,11.72933578]
[1769022064219,1.41572261,127.61,127.52,4.66543578]
[1769022065523,1.40245743,127.64,127.55,4.66543578]
[1769022066230,7.0581,127.62,127.55,4.66543578]
[1769022067716,1.40245743,127.64,127.57,4.66543578]
[1769022067929,1.36352975,127.67,127.57,4.66543578]
[1769022068517,7.0573,127.64,127.57,4.66543578]
[1769022069221,8.40855205,127.63,127.57,4.66543578]
[1769022070227,111.10151652,127.66,127.57,4.66543578]
[1769022070415,7.46499428,127.65,127.57,4.66543578]
[1769022070622,1.33831652,127.65,127.57,4.66543578]
[1769022070935,1.33831652,127.65,127.57,11.72623578]
[1769022070936,7.0571,127.64,127.57,11.72623578]
[1769022071119,1.33831652,127.65,127.57,4.66543578]
[1769022071431,1.33831652,127.65,127.58,7.0603]
[1769022071432,8.39481652,127.65,127.58,7.0603]
[1769022072528,8.36936268,127.67,127.6,4.66543578]
[1769022073429,8.36936268,127.67,127.6,11.72463578]
[1769022075031,8.3338787,127.66,127.58,4.66543578]
[1769022075820,1.2778787,127.66,127.58,4.66543578]
[1769022076226,1.25086233,127.64,127.58,4.66543578]
[1769022076624,8.30796233,127.64,127.58,4.66543578]
[1769022077122,1.25086233,127.64,127.58,11.72573578]
[1769022078633,8.27283985,127.67,127.6,4.86827124]
[1769022079026,6.14029554,127.66,127.6,4.86827124]
[1769022079330,8.27283985,127.67,127.6,4.86827124]
[1769022079633,8.27283985,127.67,127.6,11.92747124]
[1769022080632,1.19518201,127.7,127.62,4.86827124]
[1769022080819,7.31983576,127.69,127.62,4.86827124]
[1769022081022,6.13717091,127.68,127.62,4.86827124]
[1769022081224,1.18266485,127.69,127.62,4.86827124]
[1769022081424,1.18266485,127.69,127.62,11.92637124]
[1769022081639,1.17202631,127.71,127.63,4.91170868]
[1769022081829,6.13471994,127.7,127.63,4.91170868]
[1769022082028,1.17202631,127.71,127.63,4.91170868]
[1769022082230,7.30477746,127.7,127.63,4.91170868]
[1769022082428,1.17202631,127.69,127.63,4.91170868]
[1769022082623,1.17202631,127.69,127.61,4.91170868]
[1769022082831,1.16152061,127.64,127.55,4.91170868]
[1769022083133,1.16152061,127.63,127.55,4.91170868]
[1769022084233,1.1511394,127.66,127.56,4.91170868]
[1769022086038,7.0566,127.65,127.58,4.91170868]
[1769022087325,116.19880201,127.68,127.59,4.91170868]
[1769022087326,6.45150201,127.68,127.59,4.91170868]
[1769022087532,1.12073815,127.71,127.6,4.91170868]
[1769022087839,7.0545,127.69,127.62,4.91170868]
[1769022090241,8.17413815,127.71,127.63,4.91170868]
[1769022091035,7.0538,127.7,127.63,11.96900868]
[1769022092344,1.12073815,127.71,127.64,4.91170868]
[1769022092640,1.12073815,127.71,127.64,11.96850868]
[1769022093227,1.06285079,127.73,127.65,4.91170868]
[1769022093742,8.11515079,127.73,127.65,11.96810868]
[1769022094043,8.11515079,127.73,127.66,4.91170868]
[1769022094742,1.04441663,127.76,127.67,4.91170868]
[1769022094935,1.04441663,127.75,127.67,4.91170868]
[1769022095931,7.0518,127.74,127.67,11.96680868]
[1769022096242,109.66,127.78,127.67,11.96680868]
[1769022096243,1.03533788,127.78,127.68,4.91170868]
[1769022096432,7.0486,127.8,127.73,4.91170868]
[1769022098646,7.0488,127.79,127.73,4.91170868]
[1769022098841,1.00876422,127.75,127.67,4.91170868]
[1769022099040,7.0516,127.74,127.67,4.91170868]
[1769022100248,116.11670201,127.77,127.67,4.91170868]
[1769022100249,7.0506,127.76,127.67,4.91170868]
[1769022100638,8.04973984,127.78,127.7,4.91170868]
[1769022101144,0.99161704,127.77,127.67,4.91170868]
[1769022101348,8.04191704,127.77,127.68,4.91170868]
[1769022101648,7.0503,127.77,127.68,4.91170868]
[1769022101947,8.03238568,127.79,127.7,11.96530868]
[1769022102148,8.03238568,127.79,127.7,4.91170868]
[1769022102647,7.0493,127.78,127.71,7.053]
[1769022102844,2.33723584,127.82,127.71,4.91170868]
[1769022103040,0.97480068,127.82,127.71,4.91170868]
[1769022103238,110.57810068,127.85,127.73,4.91170868]
[1769022103547,0.97480068,127.85,127.74,4.91170868]
[1769022104138,7.0466,127.83,127.75,4.91170868]
[1769022104339,0.96651327,127.84,127.75,4.91170868]
[1769022105937,7.0472,127.82,127.75,4.91170868]
[1769022106545,110.55942877,127.83,127.75,4.91170868]
[1769022107049,7.0483,127.8,127.73,11.44876719]
[1769022107452,0.93221813,127.81,127.73,4.39686719]
[1769022107641,7.0489,127.79,127.73,4.39686719]
[1769022107846,0.92449419,127.84,127.73,4.39686719]
[1769022108153,0.92449419,127.84,127.76,4.39686719]
[1769022108348,7.97059419,127.84,127.76,4.39686719]
[1769022108741,7.97059419,127.84,127.77,4.39686719]
[1769022109950,7.0461,127.84,127.77,4.39686719]
[1769022112452,11.7879266,127.88,127.8,4.39686719]
[1769022113047,4.7438266,127.88,127.81,4.39686719]
[1769022113250,7.0428,127.9,127.81,4.39686719]
[1769022113451,4.7438266,127.91,127.82,4.39686719]
[1769022114242,11.16263901,127.94,127.84,4.39686719]
[1769022114452,4.7438266,127.94,127.84,4.39686719]
[1769022114846,11.7850266,127.93,127.84,11.44256719]
[1769022115147,11.7850266,127.93,127.85,4.39686719]
[1769022115358,4.7438266,127.96,127.87,4.39686719]
[1769022115749,114.2274266,127.99,127.88,4.39686719]
[1769022116251,11.7824266,127.98,127.89,4.39686719]
[1769022117042,7.0396,127.96,127.89,4.39686719]
[1769022117248,7.0396,127.96,127.86,11.44156719]
[1769022117249,4.7438266,127.95,127.86,11.44156719]
[1769022117758,11.7842266,127.95,127.87,4.39686719]
[1769022117947,4.7438266,127.95,127.87,4.39686719]
[1769022118148,4.7438266,127.95,127.85,4.39686719]
[1769022118348,4.7438266,127.92,127.85,4.39686719]
[1769022119046,4.56764719,127.91,127.82,11.44356719]
[1769022119249,4.56764719,127.91,127.83,4.58474781]
[1769022120057,7.0431,127.9,127.83,4.58474781]
[1769022120262,4.56764719,127.9,127.8,11.63274781]
[1769022120559,7.0439,127.88,127.8,11.63274781]
[1769022120758,4.56764719,127.89,127.8,4.58474781]
[1769022120958,4.56764719,127.92,127.82,4.58474781]
[1769022121262,7.0423,127.91,127.82,4.58474781]
[1769022121760,4.56764719,127.89,127.8,4.58474781]
[1769022122257,11.61154719,127.88,127.8,4.58474781]
[1769022122449,4.56764719,127.88,127.77,4.58474781]
[1769022122646,10.9864596,127.91,127.8,4.58474781]
[1769022122851,4.56764719,127.94,127.84,4.58474781]
[1769022123051,4.56764719,127.94,127.85,4.58474781]
[1769022123459,11.60824719,127.94,127.86,11.62944781]
[1769022123959,4.56764719,127.92,127.81,4.58474781]
[1769022124358,4.56764719,127.92,127.83,7.0464]
[1769022124858,11.60934719,127.92,127.84,7.0457]
[1769022125157,4.56764719,127.92,127.83,4.58474781]
[1769022125956,7.0423,127.91,127.83,4.58474781]
[1769022126669,4.56764719,127.9,127.8,114.21984781]
[1769022126856,4.56764719,127.9,127.81,4.58474781]
[1769022127060,4.56764719,127.89,127.78,4.58474781]
[1769022127355,11.61224719,127.87,127.78,4.58474781]
[1769022127553,6.41881241,127.89,127.79,4.58474781]
[1769022127751,4.56764719,127.9,127.79,4.58474781]
[1769022128856,7.0439,127.88,127.79,4.58474781]
[1769022129565,4.56764719,127.88,127.78,7.049]
[1769022129759,4.56764719,127.85,127.76,4.58474781]
[1769022130259,7.0461,127.84,127.76,11.63484781]
[1769022130452,4.56764719,127.87,127.77,4.58474781]
[1769022130653,7.0455,127.85,127.78,7.0492]
[1769022133261,7.0455,127.85,127.77,4.58474781]
[1769022134552,7.0455,127.85,127.77,11.63444781]
[1769022135460,11.61234719,127.87,127.79,4.58474781]
[1769022135961,7.0449,127.86,127.79,11.63344781]
[1769022136150,7.0449,127.86,127.79,4.58474781]
[1769022136351,7.0449,127.86,127.76,109.67]
[1769022136352,4.56764719,127.87,127.76,4.62670027]
[1769022136750,4.70121361,127.85,127.76,4.62670027]
[1769022137367,7.0472,127.82,127.76,4.62670027]
[1769022137567,4.70121361,127.82,127.72,4.62670027]
[1769022138060,7.0483,127.8,127.74,7.0515]
[1769022138263,4.70121361,127.82,127.74,11.67820027]
[1769022139769,114.30081361,127.85,127.75,4.62670027]
[1769022140267,7.047,127.83,127.76,11.67690027]
[1769022140454,4.70121361,127.84,127.76,4.62670027]
[1769022141159,7.0479,127.81,127.72,4.62670027]
[1769022141360,4.70121361,127.82,127.72,4.62670027]
[1769022141758,4.70121361,127.81,127.72,4.62670027]
[1769022142868,7.0484,127.8,127.73,7.0517]
[1769022143265,4.70121361,127.81,127.72,4.62670027]
[1769022143766,7.0492,127.79,127.72,11.67910027]
[1769022143973,7.0492,127.79,127.73,4.62670027]
[1769022145168,7.0492,127.79,127.73,11.67870027]
[1769022145665,7.048,127.81,127.74,4.62670027]
[1769022145860,4.70121361,127.82,127.74,4.62670027]
[1769022146066,6.16650537,127.81,127.74,4.62670027]
[1769022146267,4.70121361,127.82,127.74,4.62670027]
[1769022146458,6.16906329,127.81,127.74,4.62670027]
[1769022146667,4.70121361,127.82,127.74,4.62670027]
[1769022146970,7.0487,127.79,127.74,4.62670027]
[1769022147174,4.70121361,127.82,127.74,11.67790027]
[1769022147469,114.30921361,127.84,127.74,4.62670027]
[1769022148869,7.0482,127.81,127.75,7.0509]
[1769022149665,4.70121361,127.83,127.75,4.62670027]
[1769022149972,7.0468,127.83,127.76,4.62670027]
[1769022151073,4.70121361,127.86,127.78,4.62670027]
[1769022151276,6.16980856,127.85,127.78,4.62670027]
[1769022151476,4.70121361,127.86,127.78,4.62670027]
[1769022151775,4.70121361,127.8,127.72,4.62670027]
[1769022152867,7.0488,127.79,127.72,11.67930027]
[1769022153374,4.70121361,127.8,127.72,4.62670027]
[1769022153576,11.12002602,127.83,127.72,4.62670027]
[1769022153768,6.17075963,127.82,127.72,4.62670027]
[1769022153969,4.70121361,127.83,127.72,4.62670027]
[1769022154178,11.74821361,127.83,127.75,4.62670027]
[1769022154474,7.047,127.83,127.75,4.62670027]
[1769022154873,7.0472,127.82,127.75,11.67710027]
[1769022156268,11.74901361,127.81,127.73,7.0515]
[1769022156474,4.70121361,127.81,127.73,7.0515]
[1769022156682,4.70121361,127.81,127.73,11.67820027]
[1769022157880,4.70121361,127.79,127.71,7.0527]
[1769022158877,7.05,127.77,127.71,7.0527]
[1769022159079,7.05,127.77,127.7,4.62670027]
[1769022160981,4.70121361,127.76,127.67,4.62670027]
[1769022161383,4.70121361,127.76,127.67,11.68200027]
[1769022161384,7.0516,127.74,127.67,11.68200027]
[1769022162086,7.0522,127.73,127.67,4.62670027]
[1769022162782,4.70121361,127.75,127.67,4.62670027]
[1769022163989,7.0516,127.74,127.67,4.62670027]
[1769022164488,7.0523,127.73,127.67,4.62670027]
[1769022168095,7.0529,127.72,127.65,295.98]
[1769022168291,4.76277179,127.73,127.64,11.8767605]
[1769022169389,4.76277179,127.73,127.65,4.8199605]
[1769022169591,11.81537179,127.73,127.66,4.8199605]
[1769022171705,7.0526,127.73,127.67,4.8199605]
[1769022173586,7.0527,127.72,127.66,7.0555]
[1769022173896,7.0527,127.72,127.66,11.8754605]
[1769022174394,7.0521,127.73,127.67,11.8752605]
[1769022175089,7.0512,127.75,127.68,11.8747605]
[1769022175997,114.43047179,127.77,127.69,11.8738605]
[1769022175998,4.76277179,127.77,127.69,11.8738605]
[1769022176295,4.76277179,127.77,127.69,4.8199605]
[1769022176493,10.93382515,127.76,127.69,4.8199605]
[1769022176688,7.0516,127.74,127.69,4.8199605]
[1769022177287,11.81487179,127.73,127.66,11.8753605]
[1769022177894,4.76277179,127.73,127.66,4.8199605]
[1769022178093,4.76277179,127.72,127.64,4.8199605]
[1769022178396,7.054,127.7,127.64,11.8769605]
[1769022179397,4.42439351,127.75,127.66,4.41405859]
[1769022179588,4.42439351,127.73,127.63,4.41405859]
[1769022180499,4.42439351,127.71,127.63,4.41405859]
[1769022181694,7.0537,127.71,127.65,4.41405859]
[1769022182192,11.47699351,127.72,127.65,11.47035859]
[1769022182384,4.42439351,127.72,127.65,4.41405859]
[1769022182789,7.0532,127.71,127.65,4.41405859]
[1769022183893,7.0532,127.71,127.62,109.7908]
[1769022183894,4.42439351,127.74,127.66,11.46985859]
[1769022184601,4.42439351,127.72,127.64,11.47065859]
[1769022185094,4.42439351,127.72,127.64,4.41405859]
[1769022185298,114.10989351,127.75,127.64,4.41405859]
[1769022185884,4.42439351,127.74,127.64,4.41405859]
[1769022186891,7.0526,127.72,127.66,7.0559]
[1769022187298,4.42439351,127.74,127.66,7.0559]
[1769022188093,7.0526,127.72,127.66,7.0559]
[1769022188799,7.0521,127.73,127.66,11.46995859]
[1769022189503,7.0521,127.73,127.67,7.0552]
[1769022190700,7.0521,127.73,127.66,11.46995859]
[1769022191698,7.0526,127.72,127.66,11.46995859]
[1769022192095,7.0526,127.72,127.66,4.41405859]
[1769022192400,4.42439351,127.72,127.63,4.41405859]
[1769022193504,11.47909351,127.69,127.63,4.41405859]
[1769022193700,4.42439351,127.69,127.6,4.41405859]
[1769022195498,11.47979351,127.67,127.6,4.41405859]
[1769022195903,4.42439351,127.67,127.58,4.56478492]
[1769022196206,4.81841237,127.66,127.58,4.56478492]
[1769022196704,4.81841237,127.69,127.59,4.56478492]
[1769022197500,7.0549,127.68,127.61,11.62328492]
[1769022199397,7.0554,127.67,127.61,4.56478492]
[1769022199701,4.81841237,127.67,127.59,4.56478492]
[1769022200296,7.0546,127.69,127.61,4.56478492]
[1769022201201,7.0549,127.68,127.61,4.56478492]
[1769022202004,7.0549,127.68,127.61,11.62348492]
[1769022204611,4.81841237,127.69,127.62,7.0578]
[1769022206107,11.87301237,127.69,127.62,7.0578]